[Event "Go-Makkah Chess Festival 2019"]
[Site "Sousse"]
[Date "2019.09.06"]
[Round "6.7"]
[White "Bouzidi, Ahmed"]
[Black "Rian, Saad"]
[Result "0-1"]
[ECO "B00"]
[WhiteElo "2197"]
[BlackElo "2100"]
[Annotator "RC"]
[PlyCount "125"]
[EventDate "2019.09.02"]
[EventType "swiss"]
[EventCountry "TUN"]
[SourceTitle "playchess.com"]
[Source "ChessBase"]
[SourceQuality "1"]
[TimeControl "5400+30"]

1. e4 {[%emt 1:30:30]} b6 {[%emt 0:18:51]} 2. d4 {[%emt 0:00:00]} Bb7 {[%emt 0:00:13]} 3. Nc3 {[%emt 0:00:00]} e6 {[%emt 0:00:15]} 4. Bd3 {[%emt 0:00:00]} Nf6 {[%emt 0:01:03]} 5. Nf3 {[%emt 0:00:00]} Bb4 {[%emt 0:09:11]} 6. e5 {[%emt 0:00:00]} Ne4 {[%emt 0:03:01]} 7. Bxe4 {[%emt 0:00:00]} Bxe4 {[%emt 0:00:21]} 8. O-O {[%emt 0:00:00]} Bxc3 {[%emt 0:10:11]} 9. bxc3 {[%emt 0:00:00]} h6 {[%emt 0:09:25]} 10. Nd2 {[%emt 0:00:00]} Bb7 {[%emt 0:02:25]} 11. f4 {[%emt 0:00:00]} Nc6 {[%emt 0:00:16]} 12. Ba3 {[%emt 0:00:00]} Ne7 {[%emt 0:00:24]} 13. Bxe7 {[%emt 0:00:00]} Qxe7 {[%emt 0:00:07]} 14. c4 {[%emt 0:00:00]} d6 {[%emt 0:01:44]} 15. Qe2 {[%emt 0:00:00]} O-O {[%emt 0:07:59]} 16. Ne4 {[%emt 0:00:00]} Rad8 {[%emt 0:02:17]} 17. c3 {[%emt 0:00:00]} Qd7 {[%emt 0:03:12]} 18. Rf3 {[%emt 0:00:00]} Qc6 {[%emt 0:05:47]} 19. d5 {[%emt 0:00:00]} exd5 {[%emt 0:01:02]} 20. Nf6+ {[%emt 0:00:00]} Kh8 {[%emt 0:04:38]} 21. Qd3 {[%emt 0:00:00]} gxf6 {[%emt 0:08:10]} 22. Rh3 {[%emt 0:00:00]} Rg8 {[%emt 0:00:16]} 23. Rxh6+ {[%emt 0:00:00]} Kg7 {[%emt 0:00:04]} 24. Qh7+ {[%emt 0:00:00]} Kf8 {[%emt 0:00:07]} 25. e6 {[%emt 0:00:00]} Rxg2+ {[%emt 0:01:35]} 26. Kh1 {[%emt 0:00:00]} Rg7 {[%emt 0:00:18]} 27. e7+ {[%emt 0:00:00]} Kxe7 {[%emt 0:00:02]} 28. Qxg7 {[%emt 0:00:00]} dxc4+ {[%emt 0:01:03]} 29. Kg1 {[%emt 0:14:00]} Qh1+ {[%emt 0:00:13]} 30. Kf2 {[%emt 0:00:00]} Qf3+ {[%emt 0:02:14]} 31. Kg1 {[%emt 0:00:00]} Qe3+ {[%emt 0:00:07]} 32. Kf1 {[%emt 0:00:00]} Qxf4+ {[%emt 0:00:07]} 33. Kg1 {[%emt 0:00:00]} Qe3+ {[%emt 0:01:28]} 34. Kf1 {[%emt 0:00:00]} Qf3+ {[%emt 0:01:09]} 35. Kg1 {[%emt 0:00:00]} Qe3+ {[%emt 0:02:24]} 36. Kf1 {[%emt 0:00:00]} Qf4+ {[%emt 0:00:42]} 37. Kg1 {[%emt 0:00:00]} Qg5+ {[%emt 0:00:25]} 38. Qxg5 {[%emt 0:00:00]} fxg5 {[%emt 0:00:01]} 39. Re1+ {[%emt 0:00:00]} Kd7 {[%emt 0:00:03]} 40. Rh7 {[%emt 0:00:00]} Bd5 {[%emt 0:00:42]} 41. Rg7 {[%emt 0:00:00]} Rh8 {[%emt 0:00:22]} 42. Re3 {[%emt 0:00:00]} Rh4 {[%emt 0:00:55]} 43. Rxg5 {[%emt 0:00:00]} Kc6 {[%emt 0:00:25]} 44. Rgg3 {[%emt 0:00:00]} a5 {[%emt 0:00:13]} 45. Rh3 {[%emt 0:00:00]} Rf4 {[%emt 0:00:28]} 46. Rh8 {[%emt 0:00:00]} Be4 {[%emt 0:00:47]} 47. h4 {[%emt 0:00:00]} d5 {[%emt 0:00:15]} 48. Rh3 {[%emt 0:00:00]} b5 {[%emt 0:01:28]} 49. Ra8 {[%emt 0:00:00]} b4 {[%emt 0:00:23]} 50. Rxa5 {[%emt 0:00:00]} bxc3 {[%emt 0:00:03]} 51. Rxc3 {[%emt 0:00:00]} Rxh4 {[%emt 0:00:27]} 52. Kf2 {[%emt 0:00:00]} Kb6 {[%emt 0:00:20]} 53. Raa3 {[%emt 0:00:00]} Kc5 {[%emt 0:00:40]} 54. Rh3 {[%emt 0:00:00]} Rg4 {[%emt 0:01:19]} 55. Rhg3 {[%emt 0:00:00]} Rh4 {[%emt 0:00:29]} 56. Rh3 {[%emt 0:00:00]} Rf4+ {[%emt 0:00:04]} 57. Ke3 {[%emt 0:00:00]} Rf1 {[%emt 0:00:16]} 58. Ra5+ {[%emt 0:00:00]} Kb6 {[%emt 0:00:16]} 59. Ra8 {[%emt 0:00:00]} f5 {[%emt 0:01:30]} 60. Rh6+ {[%emt 0:02:32]} Kb7 {[%emt 0:00:32]} 61. Rha6 {[%emt 0:01:27]} c3 {[%emt 0:00:22]} 62. R6a7+ {[%emt 0:01:19]} Kb6 {[%emt 0:00:20]} 63. Ra6+ {[%emt 0:00:16]} 0-1

[Event "Go-Makkah Chess Festival 2019"]
[Site "Sousse"]
[Date "2019.09.06"]
[Round "6.8"]
[White "Ahmed AlRehily"]
[Black "Henni, Mohamed"]
[Result "1-0"]
[ECO "A45"]
[WhiteElo "1827"]
[BlackElo "2205"]
[Annotator "ChessBase"]
[PlyCount "77"]
[EventDate "2019.09.02"]
[EventType "swiss"]
[EventCountry "TUN"]
[SourceTitle "playchess.com"]
[Source "ChessBase"]
[SourceQuality "1"]
[TimeControl "5400+30"]

1. d4 {[%emt 0:00:00]} Nf6 {[%emt 0:10:00]} 2. Bg5 {[%emt 0:00:19]} Ne4 {[%emt 0:00:48]} 3. Bf4 {[%emt 0:00:17]} d5 {[%emt 0:01:01]} 4. Nd2 {[%emt 0:00:58]} Nd6 {[%emt 0:01:46]} 5. Ngf3 {[%emt 0:00:12]} Nd7 {[%emt 0:01:09]} 6. e3 {[%emt 0:00:51]} Nf6 {[%emt 0:00:43]} 7. h3 {[%emt 0:00:44]} Bf5 {[%emt 0:03:37]} 8. c4 {[%emt 0:06:19]} e6 {[%emt 0:00:42]} 9. Ne5 {[%emt 0:01:19]} c6 {[%emt 0:07:36]} 10. c5 {[%emt 0:00:53]} Nde4 {[%emt 1:07:38]} 11. f3 {[%emt 0:00:21]} Nxd2 {[%emt 0:00:00]} 12. Qxd2 {[%emt 0:00:07]} Nd7 {[%emt 0:00:00]} 13. b4 {[%emt 0:03:03]} Nxe5 {[%emt 0:00:00]} 14. Bxe5 {[%emt 0:00:02]} f6 {[%emt 0:00:00]} 15. Bh2 {[%emt 0:01:08]} b6 {[%emt 0:00:00]} 16. Ba6 {[%emt 0:02:24]} Qd7 {[%emt 0:00:00]} 17. a4 {[%emt 0:00:22]} Be7 {[%emt 0:00:00]} 18. b5 {[%emt 0:02:04]} O-O {[%emt 0:00:00]} 19. g4 {[%emt 0:01:50]} Bg6 {[%emt 0:00:00]} 20. Rc1 {[%emt 0:01:47]} bxc5 {[%emt 0:00:00]} 21. dxc5 {[%emt 0:03:57]} Rfd8 {[%emt 0:00:00]} 22. O-O {[%emt 0:03:30]} e5 {[%emt 0:00:00]} 23. f4 {[%emt 0:01:51]} exf4 {[%emt 0:00:00]} 24. Bxf4 {[%emt 0:00:36]} Be4 {[%emt 0:00:00]} 25. bxc6 {[%emt 0:01:59]} Qxc6 {[%emt 0:00:00]} 26. Bb5 {[%emt 0:00:08]} Qe6 {[%emt 0:00:00]} 27. c6 {[%emt 0:01:12]} a6 {[%emt 0:00:00]} 28. c7 {[%emt 0:00:04]} Rf8 {[%emt 0:00:00]} 29. Bc6 {[%emt 0:02:23]} f5 {[%emt 0:00:00]} 30. Bxa8 {[%emt 0:01:16]} Rxa8 {[%emt 0:00:00]} 31. g5 {[%emt 0:00:31]} Rc8 {[%emt 0:00:00]} 32. Qf2 {[%emt 0:03:34]} Qd7 {[%emt 0:01:00]} 33. Qg3 {[%emt 0:02:28]} Qxa4 {[%emt 0:00:57]} 34. Be5 {[%emt 0:01:54]} Qb4 {[%emt 0:03:37]} 35. Rf2 {[%emt 0:00:55]} Bc5 {[%emt 0:01:17]} 36. g6 {[%emt 0:07:30]} h5 {[%emt 0:01:48]} 37. Qg5 {[%emt 0:01:54]} Qa3 {[%emt 0:03:40]} 38. Re1 {[%emt 0:05:32]} Qb4 {[%emt 0:01:02]} 39. Ref1 {[%emt 0:01:35]} 1-0

[Event "Go-Makkah Chess Festival 2019"]
[Site "Sousse"]
[Date "2019.09.07"]
[Round "7.4"]
[White "Ezat, Mohamed"]
[Black "Bouzidi, Ahmed"]
[Result "1-0"]
[ECO "E73"]
[WhiteElo "2458"]
[BlackElo "2197"]
[Annotator "ChessBase"]
[PlyCount "65"]
[EventDate "2019.09.02"]
[EventType "swiss"]
[EventCountry "TUN"]
[SourceTitle "playchess.com"]
[Source "ChessBase"]
[SourceQuality "1"]
[TimeControl "5400+30"]

1. d4 {[%emt 0:00:00]} Nf6 {[%emt 0:11:32]} 2. c4 {[%emt 0:00:00]} g6 {[%emt 0:00:17]} 3. Nc3 {[%emt 0:00:02]} Bg7 {[%emt 0:00:12]} 4. e4 {[%emt 0:00:12]} d6 {[%emt 0:00:06]} 5. Be2 {[%emt 0:00:24]} O-O {[%emt 0:01:11]} 6. Bg5 {[%emt 0:00:18]} Na6 {[%emt 0:15:14]} 7. Qd2 {[%emt 0:02:17]} c5 {[%emt 0:01:10]} 8. d5 {[%emt 0:00:17]} Qa5 {[%emt 0:00:38]} 9. Nf3 {[%emt 0:11:39]} b5 {[%emt 0:08:57]} 10. cxb5 {[%emt 0:15:05]} Nc7 {[%emt 0:00:22]} 11. e5 {[%emt 0:00:02]} Nfxd5 {[%emt 0:11:11]} 12. Nxd5 {[%emt 0:05:50]} Qxd2+ {[%emt 0:00:38]} 13. Nxd2 {[%emt 0:00:08]} Nxd5 {[%emt 0:00:05]} 14. Bf3 {[%emt 0:00:15]} Be6 {[%emt 0:02:43]} 15. exd6 {[%emt 0:08:48]} exd6 {[%emt 0:01:43]} 16. O-O-O {[%emt 0:00:20]} f6 {[%emt 0:18:55]} 17. Rhe1 {[%emt 0:07:34]} Bf7 {[%emt 0:00:08]} 18. Nc4 {[%emt 0:03:05]} Nb6 {[%emt 0:11:40]} 19. Nxb6 {[%emt 0:10:53]} axb6 {[%emt 0:00:06]} 20. Bxa8 {[%emt 0:00:10]} Rxa8 {[%emt 0:00:14]} 21. Bf4 {[%emt 0:04:12]} d5 {[%emt 0:00:46]} 22. Re7 {[%emt 0:00:06]} d4 {[%emt 0:04:37]} 23. Rb7 {[%emt 0:01:18]} Bxa2 {[%emt 0:05:28]} 24. Rxb6 {[%emt 0:01:55]} Bc4 {[%emt 0:00:54]} 25. Kd2 {[%emt 0:01:06]} g5 {[%emt 0:02:16]} 26. Rc1 {[%emt 0:00:36]} Bb3 {[%emt 0:00:38]} 27. Rb8+ {[%emt 0:02:27]} Rxb8 {[%emt 0:00:21]} 28. Bxb8 {[%emt 0:00:01]} c4 {[%emt 0:00:13]} 29. Bd6 {[%emt 0:01:56]} g4 {[%emt 0:00:44]} 30. f4 {[%emt 0:00:43]} gxf3 {[%emt 0:00:29]} 31. gxf3 {[%emt 0:00:02]} f5 {[%emt 0:00:23]} 32. f4 {[%emt 0:00:42]} d3 {[%emt 0:00:29]} 33. b6 {[%emt 0:01:16]} 1-0

[Event "Go-Makkah Chess Festival 2019"]
[Site "Sousse"]
[Date "2019.09.07"]
[Round "7.5"]
[White "Alkrnaf, Mohamed Othman"]
[Black "Zrikem, Nassim"]
[Result "1-0"]
[ECO "D40"]
[WhiteElo "1915"]
[BlackElo "2090"]
[Annotator "NA RC"]
[PlyCount "143"]
[EventDate "2019.09.02"]
[EventType "swiss"]
[EventCountry "TUN"]
[SourceTitle "playchess.com"]
[Source "ChessBase"]
[SourceQuality "1"]
[TimeControl "5400+30"]

1. d4 {[%emt 0:01:19]} d5 {[%emt 0:00:00]} 2. Nf3 {[%emt 0:00:08]} Nf6 {[%emt 0:00:00]} 3. c4 {[%emt 0:00:22]} e6 {[%emt 0:00:00]} 4. Nc3 {[%emt 0:01:48]} Be7 {[%emt 0:00:00]} 5. Bf4 {[%emt 0:00:45]} O-O {[%emt 0:00:31]} 6. e3 {[%emt 0:00:21]} Nbd7 {[%emt 0:00:19]} 7. Bd3 {[%emt 0:01:26]} c5 {[%emt 0:02:54]} 8. O-O {[%emt 0:00:36]} cxd4 {[%emt 0:00:16]} 9. exd4 {[%emt 0:00:19]} dxc4 {[%emt 0:00:02]} 10. Bxc4 {[%emt 0:00:42]} Nb6 {[%emt 0:00:05] D40: Queen's Gambit Declined: Semi-Tarrasch with 5 e3} 11. Bb3 {[%emt 0:03:53]} Nbd5 {[%emt 0:00:43]} 12. Bd2 {[%emt 1:24:21]} (12. Bg5 b6 13. Bxf6 Nxf6 14. d5 exd5 15. Nxd5 Bc5 16. Qd3 Bb7 17. Rad1 Nxd5 18. Bxd5 Bxd5 19. Qxd5 Qxd5 20. Rxd5 {½-½ (30) Radjabov,T (2757)-Wang,Y (2736) Nanjing 2009}) 12... b6 {[%emt 0:00:26]} 13. Re1 $146 {[%emt 0:00:00]} ({Predecessor:} 13. Ne5 Bb7 14. Re1 Rc8 15. Qf3 h6 16. h3 Bd6 17. Rac1 Bb8 18. Ne4 {½-½ (32) Poludnyakov,V (2406)-Rynkevich,S (2357) ICCF email 2010}) 13... Bb7 {[%emt 0:00:25]} 14. Rc1 {[%emt 0:00:00]} Rc8 {[%emt 0:01:57]} 15. a3 {[%emt 0:00:00]} h6 {[%emt 0:00:32]} 16. h3 {[%emt 0:00:00]} Bd6 {[%emt 0:01:20]} 17. Ne5 {[%emt 0:00:00]} Nxc3 {[%emt 0:01:30]} 18. Bxc3 {[%emt 0:00:00]} Nd5 {[%emt 0:01:23]} 19. Qg4 {[%emt 0:00:00]} Bxe5 {[%emt 0:04:04]} 20. Bxd5 {[%emt 0:00:00]} Bh2+ {[%emt 0:02:49]} 21. Kxh2 {[%emt 0:00:00]} Bxd5 {[%emt 0:00:09]} 22. Bd2 {[%emt 0:00:00]} f5 {[%emt 0:01:16]} 23. Qg6 {[%emt 0:00:00]} Rf6 {[%emt 0:07:40]} 24. Qg3 {[%emt 0:00:00]} Kh7 {[%emt 0:02:38]} 25. f3 {[%emt 0:00:00]} Rc4 {[%emt 0:03:06]} 26. Rxc4 {[%emt 0:00:00]} Bxc4 {[%emt 0:00:05]} 27. Bf4 {[%emt 0:00:00]} Rg6 {[%emt 0:02:51]} 28. Qf2 {[%emt 0:00:00]} Qd5 {[%emt 0:01:12]} 29. Be5 {[%emt 0:00:00]} a5 {[%emt 0:01:18]} 30. Qc2 {[%emt 0:00:00]} Qb5 {[%emt 0:00:42]} 31. Re3 {[%emt 0:00:00]} Bf1 {[%emt 0:01:27] [#]} ({Black should try} 31... a4 $14) 32. g3 {[%emt 0:00:00]} (32. g4 $1 $16) 32... Bc4 {[%emt 0:02:12]} 33. Rc3 {[%emt 0:00:00]} Bd5 {[%emt 0:00:39]} 34. Kg2 {[%emt 0:00:00]} h5 {[%emt 0:02:05]} 35. Rc7 {[%emt 0:00:26]} (35. h4 $16) 35... h4 {[%emt 0:01:33]} 36. g4 {[%emt 0:00:23]} Bb3 $2 {[%emt 0:01:08]} (36... Bxf3+ $11 {and Black stays safe.} 37. Kxf3 Qf1+ 38. Qf2 Qxh3+ 39. Ke2 Rxg4) 37. Qf2 {[%emt 0:00:41]} fxg4 {[%emt 0:04:39]} 38. fxg4 {[%emt 0:05:26]} ({Weaker is} 38. Qxh4+ Kg8 $18) 38... Bd5+ {[%emt 0:02:46]} 39. Kh2 {[%emt 0:00:32]} Bc6 $18 {[%emt 0:02:06]} 40. Qxh4+ {[%emt 0:01:16]} Kg8 {[%emt 0:00:11]} 41. Qf2 {[%emt 0:02:44]} Bd7 {[%emt 0:03:29]} 42. Qg2 {[%emt 0:01:37]} Rh6 {[%emt 0:05:04]} 43. b3 {[%emt 0:00:07]} a4 {[%emt 0:00:49]} 44. b4 {[%emt 0:00:39]} Rg6 {[%emt 0:02:52]} 45. Qc2 {[%emt 0:00:41]} Rh6 {[%emt 0:02:13]} 46. Qc4 {[%emt 0:00:21]} Qxc4 {[%emt 0:00:13]} 47. Rxc4 {[%emt 0:00:05]} Rh7 {[%emt 0:00:26]} 48. Kg3 {[%emt 0:01:20]} g6 {[%emt 0:00:37]} 49. Rc7 {[%emt 0:00:39]} Rf7 {[%emt 0:00:51]} 50. Kh4 {[%emt 0:00:27]} Bb5 {[%emt 0:09:30]} 51. Rc8+ {[%emt 0:00:43]} Rf8 {[%emt 0:00:12]} 52. Rxf8+ {[%emt 0:00:25]} Kxf8 {[%emt 0:00:04]} 53. Bc7 {[%emt 0:00:03]} Ke7 {[%emt 0:01:45]} 54. Bxb6 {[%emt 0:00:16]} Bf1 {[%emt 0:00:05]} 55. Kg3 {[%emt 0:02:39]} g5 {[%emt 0:01:41]} 56. h4 {[%emt 0:00:00]} gxh4+ {[%emt 0:00:06]} 57. Kxh4 {[%emt 0:00:00]} Kf6 {[%emt 0:00:08]} 58. Bd8+ {[%emt 0:00:00]} Kg6 {[%emt 0:00:06]} 59. Kg3 {[%emt 0:00:00]} Bd3 {[%emt 0:01:44]} 60. Kf4 {[%emt 0:00:00]} Be2 {[%emt 0:00:11]} 61. g5 {[%emt 0:00:00]} Bd3 {[%emt 0:01:08]} 62. Ke5 {[%emt 0:00:00]} Kf7 {[%emt 0:00:05]} 63. Kd6 {[%emt 0:00:19]} Bc4 {[%emt 0:00:30]} 64. Kc5 {[%emt 0:00:25]} Bd3 {[%emt 0:00:03]} 65. b5 {[%emt 0:00:12]} Ke8 {[%emt 0:00:04]} 66. Bf6 {[%emt 0:00:12]} Kd7 {[%emt 0:00:10]} 67. Kb4 {[%emt 0:00:23]} Bc2 {[%emt 0:00:06]} 68. Ka5 {[%emt 0:00:18]} Kc7 {[%emt 0:00:08]} 69. Ka6 {[%emt 0:00:46]} Bd3 {[%emt 0:00:13]} 70. Be5+ {[%emt 0:00:04]} Kd7 {[%emt 0:00:30]} 71. Ka5 {[%emt 0:00:30]} Bc2 {[%emt 0:00:17]} 72. b6 {[%emt 0:00:04]} 1-0

[Event "Go-Makkah Chess Festival 2019"]
[Site "Sousse"]
[Date "2019.09.07"]
[Round "7.6"]
[White "Henni, Mohamed"]
[Black "Rian, Moubarak"]
[Result "1-0"]
[ECO "C11"]
[WhiteElo "2205"]
[BlackElo "2048"]
[Annotator "NA"]
[PlyCount "93"]
[EventDate "2019.09.02"]
[EventType "swiss"]
[EventCountry "TUN"]
[SourceTitle "playchess.com"]
[Source "ChessBase"]
[SourceQuality "1"]
[TimeControl "5400+30"]

1. e4 {[%emt 0:05:46]} e6 {[%emt 0:01:57]} 2. d4 {[%emt 0:04:58]} d5 {[%emt 0:00:08]} 3. Nd2 {[%emt 0:00:05]} Nf6 {[%emt 0:00:12]} 4. e5 {[%emt 0:00:11]} Nfd7 {[%emt 0:00:06]} 5. Ngf3 {[%emt 0:00:06]} c5 {[%emt 0:00:04]} 6. c3 {[%emt 0:00:04]} Nc6 {[%emt 0:00:07]} 7. Be2 {[%emt 0:00:47]} cxd4 {[%emt 0:00:29]} 8. cxd4 {[%emt 0:00:07]} Qb6 {[%emt 0:00:06]} 9. Nb1 {[%emt 0:09:31]} f6 {[%emt 0:01:41]} 10. exf6 {[%emt 0:05:30]} Nxf6 {[%emt 0:00:05]} 11. O-O {[%emt 0:00:12]} Bd6 {[%emt 0:00:16]} 12. Nc3 {[%emt 0:00:15]} O-O {[%emt 0:00:21]} 13. a3 {[%emt 0:04:29] C11: French: Classical System: 4 e5 and 4 Bg5 dxe4} Bd7 {[%emt 0:00:21]} 14. b4 {[%emt 0:01:23]} Rae8 {[%emt 0:05:09]} (14... Ne4 15. Na4 Qc7 16. Nc5 Rf6 17. Qd3 Nxc5 18. dxc5 Bf4 19. Bb2 Ne5 20. Nxe5 Bxe5 21. Bxe5 Qxe5 {0-1 (52) Martinez Ramirez,E (2321)-Swayams,M (2457) Barbera del Valles 2016}) 15. Bb2 {[%emt 0:01:39]} Re7 $146 {[%emt 0:01:47]} ({Predecessor:} 15... a6 16. Na4 Qc7 17. Nc5 {½-½ (29) Modder,F (1958)-Brunner,W (1756) Verden 2016}) 16. Rc1 {[%emt 0:00:56]} Be8 {[%emt 0:01:37]} 17. Na4 {[%emt 0:08:00]} Qd8 {[%emt 0:00:17]} 18. Nc5 {[%emt 0:00:32]} b6 {[%emt 0:01:16]} 19. Nd3 {[%emt 0:02:56]} Ne4 {[%emt 0:00:09]} 20. b5 {[%emt 0:05:26]} Na5 {[%emt 0:03:05]} 21. Nde5 {[%emt 0:01:23]} Rc7 {[%emt 0:00:03]} 22. a4 {[%emt 0:17:01]} Qf6 {[%emt 0:06:05]} (22... Bh5 $11 {keeps the balance.}) 23. Rxc7 {[%emt 0:02:11]} Bxc7 {[%emt 0:00:04]} 24. Ba3 {[%emt 0:00:54]} Bd6 {[%emt 0:05:18]} 25. Bxd6 {[%emt 0:00:17]} Nxd6 {[%emt 0:00:02]} 26. Qc2 {[%emt 0:00:25]} Nf5 {[%emt 0:02:46]} ({Black should try} 26... Bg6 27. Qc7 Nab7) 27. Rd1 {[%emt 0:04:55]} h5 {[%emt 0:03:47]} (27... Nh4 $16 {was necessary.}) 28. Rd3 {[%emt 0:05:09]} g5 {[%emt 0:01:24]} 29. h3 {[%emt 0:03:09]} Qg7 {[%emt 0:02:18]} 30. Qd2 {[%emt 0:03:35]} g4 {[%emt 0:04:17]} 31. hxg4 {[%emt 0:03:03]} hxg4 {[%emt 0:00:10] [#]} 32. Ng5 $1 {[%emt 0:00:06]} Nxd4 $2 {[%emt 0:01:53]} (32... Nc4 33. Nxc4 (33. Nxe6 Nxd2 34. Nxg7 Kxg7 $16) 33... dxc4 34. Nxe6 {[%mdl 64] Double Attack} Qf6) 33. Rxd4 {[%emt 0:00:24]} Qxe5 {[%emt 0:00:02]} 34. Rxg4 {[%emt 0:00:09]} Bg6 {[%emt 0:04:34]} 35. Nf3 {[%emt 0:03:28] Discovered Attack} Qa1+ {[%emt 0:00:47]} 36. Bf1 $18 {[%emt 0:00:34]} Rf6 {[%emt 0:12:22]} 37. Qh6 {[%emt 0:01:13]} Qb1 {[%emt 0:04:28]} 38. Nh4 {[%emt 0:00:30]} Kf7 {[%emt 0:00:13]} 39. Nxg6 {[%emt 0:00:07]} Rxg6 {[%emt 0:00:21]} 40. Rf4+ {[%emt 0:00:06]} Qf5 {[%emt 0:04:51]} 41. Rxf5+ {[%emt 0:00:25]} exf5 {[%emt 0:00:03]} 42. Qh7+ {[%emt 0:00:07]} Kf6 {[%emt 0:00:06]} 43. Qxa7 {[%emt 0:00:09]} Ke5 {[%emt 0:00:23]} 44. Bd3 {[%emt 0:00:41]} Nb3 {[%emt 0:02:20]} 45. Qe7+ {[%emt 0:00:42]} Re6 {[%emt 0:00:15]} 46. Qg5 {[%emt 0:00:07]} Nd4 {[%emt 0:01:05]} 47. Qe3+ {[%emt 0:00:07]} 1-0

[Event "Go-Makkah Chess Festival 2019"]
[Site "Sousse"]
[Date "2019.09.07"]
[Round "7.8"]
[White "Rian, Saad"]
[Black "Al Ghamdi, Ahmed M"]
[Result "1/2-1/2"]
[ECO "A26"]
[WhiteElo "2100"]
[BlackElo "2113"]
[Annotator "NA"]
[PlyCount "108"]
[EventDate "2019.09.02"]
[EventType "swiss"]
[EventCountry "TUN"]
[SourceTitle "playchess.com"]
[Source "ChessBase"]
[SourceQuality "1"]
[TimeControl "5400+30"]

1. c4 {[%emt 1:30:30]} Nf6 {[%emt 0:00:58]} 2. Nc3 {[%emt 0:00:00]} g6 {[%emt 0:00:05]} 3. g3 {[%emt 0:00:00]} Bg7 {[%emt 0:00:07]} 4. Bg2 {[%emt 0:00:00]} d6 {[%emt 0:00:30]} 5. Nf3 {[%emt 0:00:00]} O-O {[%emt 0:00:06]} 6. O-O {[%emt 0:00:00]} Nc6 {[%emt 0:01:11]} 7. d3 {[%emt 0:00:00]} e5 {[%emt 0:01:06]} 8. Bg5 {[%emt 0:00:00]} h6 {[%emt 0:00:21]} 9. Bxf6 {[%emt 0:00:00]} Qxf6 {[%emt 0:00:05]} 10. Rb1 {[%emt 0:00:00]} a5 {[%emt 0:02:50]} 11. a3 {[%emt 0:00:00]} Qd8 {[%emt 0:02:44]} 12. b4 {[%emt 0:00:00]} axb4 {[%emt 0:00:06]} 13. axb4 {[%emt 0:00:00]} f5 {[%emt 0:00:59] A26: English Opening vs King's Indian with ...Nc6 and d3} (13... Ne7 14. b5 c6 15. Qb3 Be6 16. Nd2 d5 17. bxc6 bxc6 18. Qc2 Nf5 19. Nb3 Nd4 20. Nxd4 exd4 21. cxd5 cxd5 {½-½ (73) Sargissian,G (2671)-Mamedov,R (2637) Khanty-Mansiysk 2013}) 14. b5 {[%emt 0:00:00]} Nb8 $146 {[%emt 0:01:49]} ({Predecessor:} 14... Ne7 $5 15. Nd2 (15. Qb3 Be6 $11) 15... g5 16. Qb3 Kh8 17. Ra1 Rb8 18. Ra7 f4 19. Rfa1 Nf5 20. Ra8 Nd4 21. Qd1 Rxa8 22. Rxa8 {1-0 (56) Goletiani,R (2391)-Ju,W (2443) Ningbo 2009}) 15. Qc2 {[%emt 0:00:00]} Nd7 {[%emt 0:01:24]} 16. Ra1 {[%emt 0:00:00]} Rb8 {[%emt 0:00:01]} 17. Ra7 {[%emt 0:00:00]} Nc5 {[%emt 0:00:45]} 18. Nd2 {[%emt 0:00:00]} Kh8 {[%emt 0:01:13]} 19. Nb3 {[%emt 0:00:00]} Ne6 {[%emt 0:00:44]} 20. Rfa1 {[%emt 0:00:00]} e4 {[%emt 0:09:51]} 21. dxe4 {[%emt 0:00:00]} f4 {[%emt 0:03:43]} 22. Ra8 {[%emt 0:00:00]} Rxa8 {[%emt 0:00:01]} 23. Rxa8 {[%emt 0:00:00]} fxg3 {[%emt 0:00:05]} 24. hxg3 {[%emt 0:00:00]} Qf6 {[%emt 0:00:14]} 25. Nd1 {[%emt 0:00:00]} h5 {[%emt 0:04:31]} 26. Qd3 {[%emt 0:00:00]} Ng5 {[%emt 0:04:27]} 27. f4 {[%emt 0:00:00]} Nf7 {[%emt 0:00:29]} 28. Ne3 {[%emt 0:00:00]} c6 {[%emt 0:03:34]} 29. bxc6 {[%emt 0:00:00]} bxc6 {[%emt 0:00:02]} 30. Nf1 {[%emt 0:00:00]} Nh6 {[%emt 0:00:42]} (30... g5 $11) 31. e3 {[%emt 0:00:00]} Ng4 {[%emt 0:02:11]} (31... c5 $16) 32. Qd2 {[%emt 0:00:00]} Be6 {[%emt 0:02:21]} 33. Rxf8+ {[%emt 0:00:00]} Qxf8 {[%emt 0:02:32]} 34. Nd4 {[%emt 0:00:00]} Bxc4 {[%emt 0:03:55]} 35. Nxc6 {[%emt 0:00:00]} Qf6 {[%emt 0:06:01]} 36. Na5 {[%emt 0:00:00]} Bg8 {[%emt 0:03:32]} 37. Bf3 {[%emt 0:00:00]} Nh6 {[%emt 0:01:48]} (37... Qc3 $14) 38. Nb7 {[%emt 0:00:00]} Nf7 {[%emt 0:02:30]} 39. Kg2 {[%emt 0:00:00]} Qe7 {[%emt 0:03:34]} 40. Qb4 {[%emt 0:00:00]} Qc7 {[%emt 0:00:35]} 41. Be2 {[%emt 0:00:00]} Qc2 {[%emt 0:01:49]} 42. Kf2 $11 {[%emt 0:00:00]} ({Better is} 42. Kf3 $16) 42... Bc3 {[%emt 0:04:12]} 43. Qb5 {[%emt 0:00:00]} Qxe4 {[%emt 0:03:53]} 44. Bf3 {[%emt 0:00:54]} Qc2+ {[%emt 0:00:25]} 45. Qe2 {[%emt 0:00:06]} Qc1 {[%emt 0:01:16]} 46. Qd1 {[%emt 0:02:35]} Qb2+ {[%emt 0:00:10]} 47. Qe2 {[%emt 0:00:08]} Qb4 {[%emt 0:00:18]} 48. Qd3 {[%emt 0:00:45]} Kg7 {[%emt 0:00:13]} 49. Bd5 {[%emt 0:01:25]} Nh6 {[%emt 0:04:41]} 50. Bxg8 {[%emt 0:01:08]} Ng4+ {[%emt 0:00:20]} 51. Kg1 {[%emt 0:01:09]} Qxb7 {[%emt 0:03:07]} 52. Be6 {[%emt 0:00:17]} Qh1+ {[%emt 0:01:15]} 53. Kxh1 {[%emt 0:17:33]} Nf2+ {[%emt 0:21:09]} 54. Kg2 Nxd3 {[%emt 0:00:30]} 1/2-1/2